bitfinex-derivatives/quotes_BTCF0:USTF0_20210111
["timestamp","ask_amount","ask_price","bid_price","bid_amount"]
[1610335907163,1.5,34844.0,34715.0,0.24240828]
[1610335907364,4.3978,34751.0,34715.0,0.24240828]
[1610335907564,1.5,34837.0,34715.0,0.24240828]
[1610335907965,1.5823,34769.0,34715.0,0.24240828]
[1610335908163,0.0857,34811.0,34715.0,0.08824]
[1610335908364,4.0922,34731.0,34715.0,0.08824]
[1610335908564,0.62901,34731.0,34715.0,0.08824]
[1610335908964,0.10865,34797.0,34715.0,0.05804]
[1610335909765,0.10865,34797.0,34715.0,0.05124]
[1610335909967,0.10865,34797.0,34715.0,4e-05]
[1610335910367,0.10865,34797.0,34710.0,0.03034]
[1610335910767,0.10865,34797.0,34710.0,0.00154]
[1610335910968,0.13632608,34711.0,34680.0,0.13632608]
[1610335911167,0.11089,34739.0,34680.0,0.13632608]
[1610335911367,0.11089,34739.0,34680.0,0.24762608]
[1610335911568,0.11089,34739.0,34680.0,0.11132608]
[1610335911767,0.11089,34739.0,34680.0,0.10852608]
[1610335912368,0.11089,34739.0,34680.0,0.09902608]
[1610335912567,0.11089,34739.0,34680.0,2.608e-05]
[1610335912968,0.13632608,34681.0,34680.0,0.09009]
[1610335913171,0.09936,34716.0,34680.0,0.04769]
[1610335913369,0.09936,34716.0,34657.0,0.00333333]
[1610335913568,0.09936,34716.0,34680.0,0.11149]
[1610335913768,0.09936,34716.0,34680.0,0.10819]
[1610335914769,0.11089,34739.0,34680.0,0.10819]
[1610335914970,0.11089,34739.0,34738.0,0.13632608]
[1610335915371,0.10928,34754.0,34738.0,0.13632608]
[1610335915772,1.5,34783.0,34738.0,0.13632608]
[1610335915970,2.20360263,34885.0,34738.0,0.20707608]
[1610335916370,2.21866725,34898.0,34738.0,0.20707608]
[1610335916771,0.0079,34904.0,34746.0,1.0]
[1610335916969,0.13632608,34831.0,34794.0,0.13632608]
[1610335917372,0.13632608,34831.0,34794.0,0.20967608]
[1610335917971,0.13632608,34831.0,34794.0,0.07335]
[1610335918170,0.13632608,34831.0,34781.0,1.0]
[1610335918373,0.22776608,34831.0,34508.0,2.11207978]
[1610335918571,0.22776608,34831.0,34652.0,1.5]
[1610335918972,1.0,34809.0,34798.0,0.13632608]
[1610335919171,1.10464,34809.0,34774.0,5.0]
[1610335919371,0.10464,34809.0,34739.0,1.0]
[1610335920171,0.09144,34831.0,34739.0,1.0]
[1610335920370,0.09144,34831.0,34739.0,1.09714]
[1610335920570,0.09144,34831.0,34808.0,6.0]
[1610335920972,0.09144,34831.0,34830.0,0.13632608]
[1610335921572,1.0,34871.0,34830.0,0.13632608]
[1610335921772,0.0079,34904.0,34830.0,0.13632608]
[1610335922974,0.0079,34904.0,34821.0,1.0]
[1610335923174,0.09664,34904.0,34821.0,1.0]
[1610335923775,0.09664,34904.0,34792.0,0.07749]
[1610335923776,0.09664,34904.0,34858.0,1.0]
[1610335924577,0.09664,34904.0,34858.0,0.49932]
[1610335924776,0.09664,34904.0,34840.0,1.0]
[1610335924977,0.09664,34904.0,34882.0,0.13632608]
[1610335925177,0.09664,34904.0,34862.0,1.0]
[1610335925577,0.09664,34904.0,34863.0,0.0858]
[1610335926178,0.09664,34904.0,34825.0,3.5468]
[1610335926576,0.09664,34904.0,34903.0,6.0]
[1610335926779,0.09664,34904.0,34903.0,5.17957]
[1610335926977,0.09664,34904.0,34903.0,0.13632608]
[1610335927579,0.09664,34904.0,34847.0,1.0]
[1610335928980,0.09664,34904.0,34869.0,0.13632608]
[1610335929378,0.09664,34904.0,34821.0,4.2243]
[1610335929979,0.09664,34904.0,34821.0,0.69204]
[1610335930180,0.09664,34904.0,34821.0,0.40747]
[1610335930379,0.09664,34904.0,34806.0,4.0532]
[1610335930980,0.13632608,34871.0,34870.0,0.13632608]
[1610335931180,0.10684,34871.0,34806.0,4.0532]
[1610335932983,0.10684,34871.0,34862.0,0.13632608]
[1610335933185,0.10684,34871.0,34806.0,4.0532]
[1610335934585,0.10684,34871.0,34867.0,1.0]
[1610335934787,0.10684,34871.0,34850.0,3.87148]
[1610335935186,0.10684,34871.0,34806.0,4.0532]
[1610335935385,0.10684,34871.0,34858.0,0.13632608]
[1610335935586,0.10684,34871.0,34806.0,4.0532]
[1610335936186,0.11065,34871.0,34806.0,4.0532]
[1610335936387,0.11065,34871.0,34802.0,0.07656]
[1610335936589,0.11065,34871.0,34795.0,1.0]
[1610335937186,1.0,34820.0,34803.0,1.0]
[1610335937386,0.13632608,34811.0,34804.0,0.13632608]
[1610335937587,0.22716608,34811.0,34804.0,0.13632608]
[1610335937989,0.22716608,34811.0,34803.0,0.05953]
[1610335938189,0.22716608,34811.0,34723.0,1.0]
[1610335938389,0.22716608,34811.0,34722.0,1.0]
[1610335938591,0.09084,34811.0,34727.0,1.0]
[1610335938789,0.09084,34811.0,34735.0,0.0002]
[1610335938989,0.09084,34811.0,34735.0,0.10378]
[1610335939389,0.09084,34811.0,34810.0,0.13632608]
[1610335939589,0.09084,34811.0,34772.0,0.09006]
[1610335940590,1.0,34809.0,34792.0,1.0]
[1610335941291,0.13632608,34802.0,34792.0,1.0]
[1610335941489,0.21471608,34802.0,34792.0,1.0]
[1610335941689,0.21471608,34802.0,34792.0,0.4667]
[1610335941891,0.07839,34802.0,34735.0,1.10378]
[1610335942390,0.07839,34802.0,34736.0,0.0002]
[1610335942590,0.07839,34802.0,34736.0,0.07938]
[1610335943191,0.07839,34802.0,34737.0,0.0002]
[1610335943390,0.07839,34802.0,34801.0,0.13632608]
[1610335943590,0.07839,34802.0,34737.0,0.0002]
[1610335943790,0.07839,34802.0,34735.0,1.0]
[1610335943991,0.07839,34802.0,34801.0,1.0]
[1610335944791,4.25188,34854.0,34801.0,1.0]
[1610335944992,1.0,34830.0,34801.0,1.0]
[1610335945192,0.0982,34830.0,34753.0,1.0]
[1610335945391,0.13632608,34821.0,34803.0,0.13632608]
[1610335945591,0.24081608,34821.0,34803.0,0.13632608]
[1610335945992,0.24081608,34821.0,34782.0,4.2175]
[1610335946592,0.10449,34821.0,34782.0,4.2175]
[1610335947396,0.13632608,34795.0,34782.0,4.2175]
[1610335947596,0.25255608,34795.0,34782.0,4.2175]
[1610335947796,0.25255608,34795.0,34752.0,3.9469]
[1610335947995,0.25255608,34795.0,34749.0,1.0]
[1610335948997,0.25255608,34795.0,34749.0,0.24782]
[1610335949195,0.25255608,34795.0,34736.0,0.0221]
[1610335949397,0.13632608,34744.0,34736.0,0.0221]
[1610335949597,0.22937608,34744.0,34736.0,0.0221]
[1610335950196,0.22937608,34744.0,34737.0,0.087]
[1610335950797,0.22937608,34744.0,34727.0,0.0855]
[1610335950997,0.22937608,34744.0,34709.0,3.8309]
[1610335951399,0.22937608,34744.0,34720.0,1.0]
[1610335951400,1.0,34738.0,34720.0,1.0]
[1610335952203,1.0,34738.0,34720.0,0.6978]
[1610335952601,0.09305,34744.0,34709.0,3.8309]
[1610335952800,0.09305,34744.0,34662.0,0.07975]
[1610335953200,0.09305,34744.0,34623.0,0.95908333]
[1610335953401,0.13632608,34678.0,34623.0,0.57360941]
[1610335953602,0.13632608,34678.0,34676.0,0.0002]
[1610335953801,0.10018,34685.0,34676.0,0.0002]
[1610335954003,0.10018,34685.0,34659.0,1.0]
[1610335954203,0.10018,34685.0,34660.0,0.0002]
[1610335954606,0.0868,34684.0,34660.0,0.0002]
[1610335955003,0.0868,34684.0,34659.0,1.0]
[1610335955405,0.13632608,34660.0,34659.0,1.0]
[1610335955605,0.21295608,34660.0,34659.0,0.9566]
[1610335955805,6.21295608,34660.0,34633.0,0.07851]
[1610335956005,0.21295608,34660.0,34633.0,0.07851]
[1610335956205,0.21295608,34660.0,34542.0,0.94281744]
[1610335956607,0.21295608,34660.0,34543.0,0.0002]
[1610335956807,0.21295608,34660.0,34543.0,0.11152]
[1610335957207,0.21295608,34660.0,34543.0,0.11132]
[1610335957413,0.13632608,34619.0,34603.0,0.13632608]
[1610335957612,0.08423,34619.0,34603.0,0.13632608]
[1610335958008,0.08423,34619.0,34604.0,0.0002]
[1610335959014,0.08423,34619.0,34603.0,0.13632608]
[1610335959411,0.07758,34619.0,34618.0,0.13632608]
[1610335960412,0.07758,34619.0,34591.0,1.0]
[1610335961313,0.07758,34619.0,34613.0,0.13632608]
[1610335962314,0.07758,34619.0,34563.0,0.11307]
[1610335962516,0.07758,34619.0,34554.0,0.07042]
[1610335962914,0.07758,34619.0,34555.0,0.0002]
[1610335963414,0.07758,34619.0,34613.0,0.13632608]
[1610335963614,0.07758,34619.0,34606.0,1.0]
[1610335964414,1.0,34623.0,34606.0,1.0]
[1610335964618,0.10736,34619.0,34606.0,1.0]
[1610335965415,0.13632608,34607.0,34606.0,1.0]
[1610335965615,0.13632608,34607.0,34588.0,5.0]
[1610335965616,0.25233608,34607.0,34554.0,0.07042]
[1610335966415,0.25233608,34607.0,34555.0,0.0002]
[1610335967316,0.25233608,34607.0,34529.0,3.5437]
[1610335967518,0.11601,34607.0,34570.0,0.13632608]
[1610335967717,0.11601,34607.0,34529.0,3.5437]
[1610335968217,0.11601,34607.0,34523.0,0.10266]
[1610335968416,3.6408,34585.0,34523.0,0.10266]
[1610335968617,3.75115,34585.0,34530.0,1.0]
[1610335968816,0.0877,34584.0,34530.0,1.0]
[1610335969017,3.75115,34585.0,34530.0,1.0]
[1610335969421,3.75115,34585.0,34545.0,0.13632608]
[1610335969819,3.75115,34585.0,34530.0,1.0]
[1610335970022,0.086,34584.0,34530.0,1.0]
[1610335970420,0.086,34584.0,34468.0,0.71846203]
[1610335970621,0.086,34584.0,34469.0,0.2955]
[1610335970822,1.0,34491.0,34474.0,1.0]
[1610335971421,1.0,34491.0,34490.0,0.13632608]
[1610335971621,1.0,34491.0,34490.0,0.23971608]
[1610335972221,1.0,34491.0,34490.0,0.10339]
[1610335972822,1.0,34509.0,34490.0,1.10339]
[1610335973421,1.0,34509.0,34508.0,0.13632608]
[1610335973622,1.0,34509.0,34508.0,0.24225608]
[1610335974022,0.9953,34509.0,34508.0,0.24225608]
[1610335974422,0.11035,34585.0,34508.0,0.24225608]
[1610335974622,1.11601,34607.0,34508.0,0.24225608]
[1610335975125,1.11601,34607.0,34509.0,0.2737]
[1610335976328,1.0,34603.0,34509.0,0.2737]
[1610335977530,0.13632608,34531.0,34509.0,0.41002608]
[1610335977735,0.07194,34531.0,34509.0,0.41002608]
[1610335979131,0.09659,34538.0,34509.0,0.41002608]
[1610335979331,0.09659,34538.0,34509.0,0.48378608]
[1610335979531,3.9706,34573.0,34537.0,0.13632608]
[1610335979930,0.11601,34607.0,34537.0,0.13632608]
[1610335980132,1.0,34626.0,34537.0,0.13632608]
[1610335980333,2.38970698,34710.0,34592.0,1.0]
[1610335980731,2.39985368,34717.0,34592.0,1.0]
[1610335981331,1.0,34731.0,34592.0,1.0]
[1610335981531,0.13632608,34665.0,34592.0,1.0]
[1610335981732,0.24703608,34665.0,34592.0,1.0]
[1610335982332,0.24703608,34665.0,34618.0,1.0]
[1610335982532,0.24703608,34665.0,34618.0,1.10631]
[1610335982733,0.11071,34665.0,34618.0,1.10631]
[1610335983133,0.03,34692.0,34618.0,1.10631]
[1610335983534,0.13632608,34688.0,34675.0,0.13632608]
[1610335983733,0.13632608,34688.0,34618.0,1.10631]
[1610335983734,0.10531,34688.0,34618.0,1.10631]
[1610335983934,0.10531,34688.0,34624.0,3.4458]
[1610335984334,0.10531,34688.0,34663.0,1.0]
[1610335984734,0.03,34692.0,34663.0,1.0]
[1610335984934,2.49850005,34783.0,34663.0,1.0]
[1610335985135,2.51878811,34797.0,34663.0,1.0877]
[1610335985539,0.13632608,34718.0,34697.0,0.13632608]
[1610335985736,0.07139,34718.0,34697.0,0.13632608]
[1610335986337,2.54052742,34807.0,34697.0,0.13632608]
[1610335986537,0.08246,34718.0,34697.0,0.13632608]
[1610335987539,0.08246,34718.0,34717.0,0.13632608]
[1610335987738,0.13632608,34732.0,34717.0,0.13632608]
[1610335987942,2.55936087,34808.0,34717.0,0.13632608]
[1610335988144,2.56562172,34812.0,34717.0,0.13632608]
[1610335988742,2.56562172,34812.0,34703.0,1.0]
[1610335988941,2.65045172,34812.0,34703.0,1.0]
[1610335989141,0.08483,34812.0,34703.0,1.0]
[1610335989541,0.08483,34812.0,34727.0,0.13632608]
[1610335989842,0.08483,34812.0,34703.0,1.0]
[1610335990041,1.0,34790.0,34673.0,0.11251]
[1610335990243,1.07673,34790.0,34652.0,1.0]
[1610335990646,1.07673,34790.0,34653.0,0.0002]
[1610335991446,1.07673,34790.0,34652.0,1.0]
[1610335991645,1.07673,34790.0,34664.0,0.13632608]
[1610335991846,1.07673,34790.0,34652.0,0.90595608]
[1610335992046,1.0,34771.0,34632.0,1.0]
[1610335992246,1.07735,34771.0,34632.0,1.0]
[1610335992446,1.07735,34771.0,34633.0,0.0002]
[1610335993648,0.13632608,34701.0,34694.0,0.13632608]
[1610335993847,0.22659608,34701.0,34632.0,1.0]
[1610335994048,0.09027,34701.0,34664.0,1.0]
[1610335994649,0.07735,34771.0,34664.0,1.0]
[1610335995048,0.07735,34771.0,34675.0,1.0]
[1610335997051,0.07735,34771.0,34674.0,1.0]
[1610335997251,0.07765,34771.0,34674.0,1.0]
[1610335997651,0.13632608,34721.0,34674.0,1.0]
[1610335997850,0.23004608,34721.0,34674.0,1.0]
[1610335998251,0.23004608,34721.0,34629.0,0.2825]
[1610335998456,0.09372,34721.0,34629.0,0.2825]
[1610335998652,0.09372,34721.0,34720.0,6.0]
[1610335998852,0.09372,34721.0,34720.0,4.50776]
[1610335999053,0.09372,34721.0,34658.0,0.07766]
[1610335999253,0.09372,34721.0,34667.0,1.0]
[1610335999454,0.09372,34721.0,34719.0,1.0]
[1610335999653,0.09372,34721.0,34702.0,5.0]
[1610336000053,0.09372,34721.0,34664.0,1.0]
[1610336000653,0.07765,34771.0,34664.0,1.0]
[1610336000853,0.07765,34771.0,34665.0,0.0873]
[1610336001652,0.07765,34771.0,34737.0,0.13632608]
[1610336001854,0.07765,34771.0,34664.0,1.10703]
[1610336002054,0.07765,34771.0,34723.0,4.7064]
[1610336002255,2.64198661,34788.0,34723.0,4.7064]
[1610336002656,2.64807669,34791.0,34723.0,4.7064]
[1610336003257,2.64807669,34791.0,34723.0,4.05754]
[1610336003660,0.13632608,34749.0,34743.0,0.13632608]
[1610336003859,0.07524,34749.0,34723.0,4.05754]
[1610336004059,0.09091,34749.0,34723.0,4.05754]
[1610336004259,2.66414024,34796.0,34723.0,4.05754]
[1610336004459,2.68334308,34798.0,34723.0,4.05754]
[1610336004658,2.68334308,34798.0,34737.0,1.0]
[1610336004858,2.68289136,34802.0,34737.0,1.0]
[1610336005259,2.68633652,34807.0,34737.0,1.0]
[1610336005659,0.13632608,34796.0,34790.0,0.13632608]
[1610336005858,0.24672608,34796.0,34737.0,1.0]
[1610336006058,0.1104,34796.0,34737.0,1.0]
[1610336006261,0.1104,34796.0,34738.0,0.0875]
[1610336006458,0.1104,34796.0,34737.0,1.0]
[1610336006658,0.1104,34796.0,34752.0,1.0]
[1610336007262,2.71777443,34834.0,34752.0,1.0]
[1610336007462,2.71777443,34834.0,34753.0,0.0867]
[1610336007662,2.71777443,34834.0,34816.0,0.13632608]
[1610336007862,2.71777443,34834.0,34786.0,1.0]
[1610336008061,2.83200443,34834.0,34786.0,1.0]
[1610336008262,0.11423,34834.0,34786.0,1.0]
[1610336008864,0.11423,34834.0,34787.0,0.0865]
[1610336009064,0.03533,34834.0,34787.0,0.0865]
[1610336009464,0.03533,34834.0,34786.0,1.0]
[1610336009664,0.03533,34834.0,34773.0,3.6448]
[1610336009665,0.11622608,34821.0,34804.0,0.13632608]
[1610336009866,0.09274,34821.0,34804.0,0.13632608]
[1610336010065,0.00944,34821.0,34804.0,0.13632608]
[1610336010266,0.03007,34834.0,34804.0,0.13632608]
[1610336010465,2.73751759,34857.0,34804.0,0.13632608]
[1610336010667,2.74358116,34864.0,34804.0,0.22312608]
[1610336010866,2.74358116,34864.0,34804.0,0.0868]
[1610336011474,2.74961325,34870.0,34804.0,0.0868]
[1610336011669,2.74920711,34874.0,34818.0,1.0]
[1610336012067,2.75521313,34879.0,34818.0,1.0]
[1610336012267,2.66951313,34879.0,34818.0,1.0]
[1610336012467,2.21551313,34879.0,34818.0,1.0]
[1610336012668,2.90822495,34919.0,34818.0,1.0]
[1610336012869,2.90822495,34919.0,34819.0,0.0871]
[1610336013269,2.90822495,34919.0,34819.0,0.17619]
[1610336013669,2.90822495,34919.0,34878.0,0.13632608]
[1610336013870,2.89599128,34934.0,34878.0,0.13632608]
[1610336014670,2.88339128,34942.0,34878.0,0.13632608]
[1610336014871,2.88339128,34942.0,34879.0,0.0868]
[1610336015470,2.87900664,34960.0,34879.0,0.0868]
[1610336015670,2.88055289,34964.0,34879.0,0.0868]
[1610336017672,2.88055289,34964.0,34902.0,0.13632608]
[1610336018472,2.85358926,34980.0,34902.0,0.13632608]
[1610336018871,2.85815006,34986.0,34903.0,0.0846]
[1610336019074,2.85815006,34986.0,34902.0,0.13632608]
[1610336019274,0.0854,34985.0,34902.0,0.13632608]
[1610336019573,0.13632608,34945.0,34931.0,0.13632608]
[1610336019775,0.09691,34945.0,34931.0,0.13632608]
[1610336019974,0.09617,34986.0,34931.0,0.22322608]
[1610336020175,0.10576,34945.0,34919.0,0.086]
[1610336020572,0.06326,34945.0,34919.0,0.086]
[1610336020773,0.02016,34945.0,34921.0,3.4211]
[1610336020973,0.09325,34956.0,34921.0,3.4211]
[1610336021174,0.09617,34986.0,34921.0,3.4211]
[1610336021175,0.09617,34986.0,34921.0,3.49537]
[1610336021573,0.13632608,34950.0,34937.0,0.13632608]
[1610336021771,0.07245,34950.0,34937.0,0.13632608]
[1610336021977,0.06685,34950.0,34937.0,0.13632608]
[1610336022574,0.06685,34950.0,34938.0,0.0866]
[1610336022976,0.06685,34950.0,34937.0,0.13632608]
[1610336023576,0.06685,34950.0,34949.0,0.13632608]
[1610336024178,0.13632608,34971.0,34949.0,0.13632608]
[1610336024378,0.13632608,34971.0,34949.0,6.13632608]
[1610336024581,0.09617,34986.0,34949.0,6.13632608]
[1610336024779,1.0,35004.0,34949.0,6.13632608]
[1610336025378,1.0,35004.0,34949.0,6.22092608]
[1610336025579,0.13632608,34996.0,34986.0,0.13632608]
[1610336025780,0.24227608,34996.0,34949.0,6.0]
[1610336026480,0.24227608,34996.0,34950.0,1.0]
[1610336026680,0.24227608,34996.0,34950.0,1.0855]
[1610336027382,0.02527608,34996.0,34950.0,1.0855]
[1610336027582,0.02527608,34996.0,34995.0,0.13632608]
[1610336027782,2.89839595,35083.0,34950.0,1.0]
[1610336027983,0.0866,35038.0,34950.0,1.07138]
[1610336028183,0.18995,35038.0,34973.0,1.0]
[1610336028383,0.10335,35038.0,34973.0,1.0]
[1610336028784,1.91306037,35090.0,34974.0,0.0856]
[1610336029687,0.13632608,35013.0,35008.0,0.13632608]
[1610336029885,0.21381608,35013.0,35008.0,0.13632608]
[1610336030086,0.21381608,35013.0,35012.0,1.0]
[1610336031988,0.07749,35013.0,35012.0,1.0]
[1610336032189,0.07749,35013.0,35011.0,0.0865]
[1610336032388,9e-05,35013.0,35002.0,0.0867]
[1610336033087,9e-05,35013.0,34980.0,1.0]
[1610336033587,9e-05,35013.0,35012.0,0.13632608]
[1610336033788,9e-05,35013.0,35000.0,3.4735]
[1610336033989,9e-05,35013.0,35000.0,3.5593]
[1610336034389,9e-05,35013.0,35000.0,3.4735]
[1610336034790,0.13632608,35018.0,35000.0,3.4735]
[1610336034990,0.13632608,35018.0,35000.0,3.32289]
[1610336035192,0.13632608,35018.0,34987.0,3.9911]
[1610336035591,0.13632608,34988.0,34987.0,3.9911]
[1610336035790,0.24370608,34988.0,34974.0,1.0]
[1610336036193,0.24370608,34988.0,34943.0,0.3791]
[1610336036392,0.24370608,34988.0,34944.0,0.0867]
[1610336036595,0.24370608,34988.0,34943.0,0.2946]
[1610336037796,0.13632608,34944.0,34943.0,0.2946]
[1610336037997,0.24636608,34944.0,34943.0,0.2946]
[1610336038998,0.24636608,34944.0,34901.0,0.0853]
[1610336039598,0.24636608,34944.0,34912.0,3.7569]
[1610336039799,0.13632608,34917.0,34912.0,3.7569]
[1610336040000,0.25080608,34917.0,34912.0,3.7569]
[1610336041001,0.25080608,34917.0,34902.0,1.0]
[1610336041600,0.25080608,34917.0,34902.0,0.68055]
[1610336041801,0.13632608,34903.0,34902.0,0.68055]
[1610336042001,0.21373608,34903.0,34902.0,0.68055]
[1610336042199,1.21373608,34903.0,34902.0,0.39932]
[1610336042602,1.21373608,34903.0,34884.0,4.146]
[1610336042800,1.21373608,34903.0,34878.0,1.0]
[1610336043401,1.21373608,34903.0,34864.0,4.5981]
[1610336043803,0.13632608,34865.0,34831.0,4.2281]
[1610336044004,0.21893608,34865.0,34757.0,0.90332608]
[1610336044208,0.21893608,34865.0,34761.0,1.0]
[1610336044404,0.21893608,34865.0,34762.0,0.0858]
[1610336044604,0.21893608,34865.0,34763.0,0.0002]
[1610336045004,0.21893608,34865.0,34762.0,0.0002]
[1610336045206,0.086,34864.0,34762.0,0.0002]
[1610336045405,0.086,34864.0,34761.0,1.07918]
[1610336045605,0.21893608,34865.0,34761.0,1.0]
[1610336045807,0.13632608,34762.0,34761.0,1.0]
[1610336046005,0.23926608,34762.0,34761.0,1.0]
[1610336046205,0.23926608,34762.0,34740.0,0.09441]
[1610336047007,0.23926608,34762.0,34668.0,1.0]
[1610336047408,0.23926608,34762.0,34671.0,0.0002]
[1610336047607,0.23926608,34762.0,34671.0,0.09358]
[1610336047810,0.10294,34762.0,34691.0,0.13632608]
[1610336048009,0.10294,34762.0,34691.0,0.20962608]
[1610336048210,0.10294,34762.0,34691.0,0.0733]
[1610336049610,0.10294,34762.0,34692.0,0.0875]
[1610336049810,4.6247,34811.0,34732.0,0.13632608]
[1610336050011,4.6247,34811.0,34732.0,0.23105608]
[1610336050413,4.6247,34811.0,34732.0,0.09473]
[1610336051015,4.6247,34811.0,34705.0,0.08943]
[1610336051212,0.0853,34810.0,34705.0,0.08943]
[1610336051411,4.70309,34811.0,34705.0,0.08943]
[1610336051814,0.13632608,34706.0,34705.0,0.08943]
[1610336052011,0.13632608,34706.0,34694.0,1.6794]
[1610336052213,0.13632608,34706.0,34694.0,0.6794]
[1610336052612,0.07487,34715.0,34694.0,0.6794]
[1610336053413,0.07487,34715.0,34695.0,0.0851]
[1610336053813,1.0,34772.0,34712.0,0.13632608]
[1610336054013,1.0,34772.0,34707.0,0.10085]
[1610336054214,0.08912,34772.0,34707.0,0.10085]
[1610336055015,0.08912,34772.0,34708.0,0.0869]
[1610336055816,0.13632608,34709.0,34694.0,0.6794]
[1610336056016,0.21285608,34709.0,34694.0,0.6794]
[1610336057817,0.13632608,34695.0,34694.0,0.6794]
[1610336058018,0.13632608,34695.0,34694.0,0.7646]
[1610336058219,0.08024,34722.0,34694.0,0.7646]
[1610336058418,0.08024,34722.0,34694.0,6.17992]
[1610336058818,0.08024,34722.0,34694.0,6.09472]
[1610336059218,1.0,34730.0,34694.0,6.09472]
[1610336059419,0.6759,34730.0,34694.0,6.09472]
[1610336059620,4.4279,34753.0,34694.0,0.09472]
[1610336059819,0.13632608,34733.0,34720.0,0.13632608]
[1610336060620,0.09315,34751.0,34720.0,0.13632608]
[1610336060821,0.09315,34751.0,34720.0,0.22617608]
[1610336061620,0.09315,34751.0,34720.0,0.08985]
[1610336061821,0.13632608,34721.0,34705.0,0.1084]
[1610336062021,0.22329608,34721.0,34694.0,0.09472]
[1610336062622,0.22329608,34721.0,34669.0,4.7085]
[1610336063622,0.22329608,34721.0,34720.0,1.0]
[1610336064023,0.08697,34721.0,34720.0,1.0]
[1610336064223,1.0,34745.0,34720.0,1.09407]
[1610336064622,1.0,34745.0,34733.0,1.0]
[1610336064823,1.0,34745.0,34733.0,2.09651]
[1610336065625,1.0,34751.0,34733.0,3.09651]
[1610336065825,0.13632608,34734.0,34733.0,3.09651]
[1610336066225,1.09217,34751.0,34733.0,3.09651]
[1610336067027,1.09217,34751.0,34734.0,0.0854]
[1610336067327,1.09217,34751.0,34733.0,3.09651]
[1610336067728,0.13632608,34743.0,34739.0,1.0]
[1610336067928,0.24593608,34743.0,34739.0,1.0]
[1610336068129,0.10961,34743.0,34739.0,1.0]
[1610336068929,0.09217,34751.0,34739.0,1.0]
[1610336069730,0.09217,34751.0,34750.0,1.13632608]
[1610336069930,0.098,34759.0,34750.0,1.13632608]
[1610336070130,1.0,34774.0,34750.0,1.13632608]
[1610336071630,4.7866,34791.0,34773.0,1.0]
[1610336072030,4.7866,34791.0,34773.0,1.08125]
[1610336072631,1.0,34801.0,34773.0,1.08125]
[1610336073634,2.77545005,34895.0,34781.0,1.0]
[1610336073831,0.13632608,34838.0,34825.0,0.13632608]
[1610336074031,0.23647608,34838.0,34781.0,0.09475]
[1610336075432,0.23647608,34838.0,34781.0,0.17995]
[1610336075731,0.10015,34838.0,34837.0,0.13632608]
[1610336076132,0.10015,34838.0,34821.0,0.10178]
[1610336076732,1.14151216,34918.0,34821.0,0.10178]
[1610336076931,0.10329,34845.0,34821.0,0.10178]
[1610336077332,0.07299,34845.0,34821.0,0.10178]
[1610336077732,0.07299,34845.0,34840.0,0.13632608]
[1610336077931,0.07299,34845.0,34843.0,1.0]
[1610336079939,0.07299,34845.0,34807.0,4.3283]
[1610336081537,0.07299,34845.0,34808.0,0.0863]
[1610336081736,0.07299,34845.0,34808.0,0.10965]
[1610336081939,1.0,34897.0,34808.0,0.10965]
[1610336083838,0.13632608,34819.0,34812.0,0.13632608]
[1610336084040,0.13632608,34819.0,34808.0,0.10965]
[1610336085439,0.24871608,34819.0,34807.0,4.3283]
[1610336085839,0.13632608,34808.0,34807.0,4.3283]
[1610336086438,0.13632608,34808.0,34793.0,0.13632608]
[1610336086938,0.07569,34826.0,34793.0,0.13632608]
[1610336087139,0.07569,34826.0,34793.0,0.24065608]
[1610336087339,0.11206,34836.0,34793.0,0.24065608]
[1610336087938,0.11206,34836.0,34793.0,0.10433]
[1610336089138,4.7572,34878.0,34793.0,0.10433]
[1610336089541,4.7572,34878.0,34790.0,4.5669]
[1610336089743,4.86653,34878.0,34790.0,4.5669]
[1610336089942,0.13632608,34810.0,34795.0,0.13632608]
[1610336090142,0.23890608,34810.0,34795.0,0.13632608]
[1610336091142,0.23890608,34810.0,34790.0,4.5669]
[1610336091744,0.23890608,34810.0,34774.0,1.0]
[1610336091946,0.13632608,34791.0,34774.0,0.794]
[1610336092145,0.24946608,34791.0,34774.0,0.574]
[1610336092944,0.24946608,34791.0,34774.0,0.03961]
[1610336093145,0.24946608,34791.0,34737.0,0.2937]
[1610336093545,1.0,34776.0,34737.0,0.2937]
[1610336093747,1.11407,34776.0,34737.0,0.2937]
[1610336093945,0.13632608,34738.0,34737.0,0.2937]
[1610336094145,0.20749608,34738.0,34737.0,0.2937]
[1610336095747,0.20749608,34738.0,34692.0,0.13632608]
[1610336095949,6.20749608,34738.0,34722.0,3.9311]
[1610336096349,0.0874,34737.0,34684.0,1.0]
[1610336096549,4.259,34735.0,34684.0,1.0]
[1610336096753,0.0874,34737.0,34684.0,1.0]
[1610336098050,0.13632608,34685.0,34669.0,1.0]
[1610336099851,0.13632608,34670.0,34669.0,1.0]
[1610336100052,1.13632608,34670.0,34663.0,0.0734]
[1610336100456,1.13632608,34670.0,34663.0,0.0346]
[1610336100655,1.13632608,34670.0,34653.0,1.0]
[1610336100857,1.13632608,34670.0,34653.0,0.8849]
[1610336101056,1.13632608,34670.0,34653.0,0.5419]
[1610336101255,1.0,34660.0,34522.0,1.0]
[1610336101457,1.0,34654.0,34516.0,1.0]
[1610336101858,0.13632608,34595.0,34576.0,0.13632608]
[1610336102260,0.13632608,34595.0,34577.0,0.0002]
[1610336102461,0.13632608,34595.0,34577.0,0.10066]
[1610336102661,0.13632608,34595.0,34516.0,1.0]
[1610336103268,0.13632608,34595.0,34480.0,2.37179662]
[1610336103269,1.0,34578.0,34480.0,2.37179662]
[1610336103464,1.0,34578.0,34517.0,0.0002]
[1610336103664,1.0,34578.0,34517.0,0.09661]